fUSD/lending_fUSD_20250119
["ID","MTS","AMOUNT","RATE_DAILY","PERIOD"]
[349513529,1737259846361,-181.31450095,0.00011819,2]
[349513530,1737259846370,-150.0,0.00011819,2]
[349513531,1737259846379,-150.37541711,0.0001182,2]
[349513532,1737259846389,-1627.74335221,0.0001182,2]
[349513533,1737259846398,-150.0,0.00011823,2]
[349513534,1737259846407,-217.80789337,0.00011826,2]
[349513535,1737259846418,-782.19210663,0.00011826,2]
[349513536,1737259846428,-150.0,0.00011826,2]
[349513537,1737259846439,-150.0,0.0001183,2]
[349513538,1737259846448,-150.0,0.00011834,2]
[349513539,1737259846457,-489.71907388,0.00011835,2]
[349513550,1737260427478,500.0,0.000202,30]
[349513585,1737261032217,-539.64,8.934e-05,2]
[349513587,1737261032227,-645.52767247,0.00010741,2]
[349513588,1737261032237,-201.05641381,0.00010741,2]
[349513589,1737261032247,-2429.2827,0.00010826,2]
[349513590,1737261032256,-250.0,0.00010841,2]
[349513591,1737261032266,-10507.56,0.00010929,2]
[349513592,1737261032276,-1000.0,0.00010929,2]
[349513593,1737261032285,-250.0,0.0001093,2]
[349513594,1737261032295,-500.0,0.00011,2]
[349513595,1737261032305,-539.64,0.00011197,2]
[349513596,1737261032314,-1874.0,0.000116,2]
[349513597,1737261032323,-96696.42144958,0.00011716,2]
[349513598,1737261032334,-36207.86153941,0.00011716,2]
[349513599,1737261032345,-2400.0,0.00011716,2]
[349513600,1737261032356,-1716.85,0.00011716,2]
[349513601,1737261032492,-2813.51741713,0.00011716,2]
[349513632,1737261038234,-26236.3207976,0.00011716,2]
[349513633,1737261038290,-91954.24922722,0.00011716,2]
[349513634,1737261038300,-736.49134127,0.00011717,2]
[349513635,1737261038309,-41630.35236151,0.00011718,2]
[349513636,1737261038455,-10683.06384074,0.00011718,2]
[349513637,1737261038469,-146713.7089338,0.00011718,2]
[349513638,1737261038483,-7015.94967,0.00011718,2]
[349513639,1737261038564,-17773.47252491,0.00011718,2]
[349513646,1737261040752,-6706.3148811,0.00011718,2]
[349513807,1737261043391,-1149.69335413,0.00011197,2]
[349513808,1737261043402,-1913.65536587,0.00011718,2]
[349513809,1737261043502,-5183.96545115,0.00011718,2]
[349513827,1737261046253,-20404.73740186,0.00011718,2]
[349513828,1737261046262,-29516.05415944,0.00011719,2]
[349513829,1737261046271,-29516.05415944,0.00011722,2]
[349513830,1737261046280,-635.0,0.00011724,2]
[349513831,1737261046289,-6601.81303368,0.00011726,2]
[349513832,1737261046298,-16292.43749348,0.00011728,2]
[349513833,1737261046307,-736.49134127,0.00011729,2]
[349513834,1737261046316,-736.49134127,0.0001173,2]
[349513835,1737261046325,-656.73428701,0.00011732,2]
[349513836,1737261046334,-29516.05415944,0.00011732,2]
[349513837,1737261046343,-2337.19014025,0.00011733,2]
[349513838,1737261046352,-6057.64531367,0.00011739,2]
[349513839,1737261046361,-6601.81303368,0.0001174,2]
[349513840,1737261046370,-6601.81303368,0.00011745,2]
[349513841,1737261046379,-29516.05415944,0.00011747,2]
[349513842,1737261046388,-38966.58318215,0.00011749,2]
[349513843,1737261046454,-412.5732438,0.00011749,2]
[349513844,1737261046466,-74425.43325022,0.00011749,2]
[349513845,1737261046672,-2185.21320165,0.00011749,2]
[349514028,1737261125224,500.0,0.00022,120]
[349514040,1737262231565,-711.86,8.867e-05,2]
[349514041,1737262231575,-177.00965022,0.00010137,2]
[349514042,1737262231586,-195.15034978,0.00010137,2]
[349514043,1737262231595,-1500.0,0.00010237,2]
[349514044,1737262231604,-250.0,0.00010247,2]
[349514045,1737262231613,-300.0,0.0001031,2]
[349514046,1737262231622,-3098.77781076,0.00010311,2]
[349514047,1737262231635,-550.99707701,0.00010311,2]
[349514048,1737262231646,-1476.44181475,0.00010311,2]
[349514049,1737262231791,-1209.9000001,0.00010311,2]
[349514064,1737262237411,-1997.74669624,0.00010311,2]
[349514065,1737262237520,-8060.0995431,0.00010311,2]
[349514066,1737262237532,-19703.00705804,0.00010311,2]
[349514067,1737262237541,-538.10641985,0.00010313,2]
[349514068,1737262237552,-1973.38358015,0.00010313,2]
[349514069,1737262237561,-1000.0,0.00010328,2]
[349514070,1737262237571,-801.91,0.00010347,2]
[349514071,1737262237580,-6862.29481291,0.00010349,2]
[349514072,1737262237636,-17037.70518709,0.00010349,2]
[349514073,1737262237647,-162.99,0.00010458,2]
[349514074,1737262237657,-2334.49,0.00010474,2]
[349514075,1737262237666,-300.0,0.00010488,2]
[349514076,1737262237676,-7378.05,0.00010489,2]
[349514077,1737262237686,-852.66,0.00010531,2]
[349514078,1737262237696,-321.17,0.00010572,2]
[349514079,1737262237706,-703.38,0.000106,2]
[349514080,1737262237716,-1287.91,0.00010621,2]
[349514081,1737262237726,-150.0,0.00010658,2]
[349514082,1737262237735,-525.33,0.00010682,2]
[349514083,1737262237750,-507.27,0.00010682,2]
[349514084,1737262237759,-4100.17,0.00010697,2]
[349514085,1737262237768,-1240.33,0.00010717,2]
[349514086,1737262237778,-250.0,0.00010785,2]
[349514087,1737262237789,-250.0,0.00010785,2]
[349514088,1737262237798,-500.0,0.00010793,2]
[349514089,1737262237807,-176.01,0.0001082,2]
[349514090,1737262237817,-151.0,0.00010898,2]
[349514091,1737262237826,-8305.25051455,0.00010903,2]
[349514092,1737262237837,-150.0,0.00010903,2]
[349514093,1737262237847,-2747.04,0.00010959,2]
[349514095,1737262237856,-150.0,0.00010959,2]
[349514097,1737262237865,-437.39,0.00010978,2]
[349514099,1737262237875,-190.29,0.00010978,2]
[349514101,1737262237887,-3500.000001,0.00011,2]
[349514103,1737262237896,-711.86,0.00011131,2]
[349514105,1737262237905,-438.33,0.00011141,2]
[349514107,1737262237916,-438.33,0.00011141,2]
[349514109,1737262237926,-30000.0,0.00011197,2]
[349514111,1737262237935,-438.33,0.00011241,2]
[349514113,1737262237944,-772.83,0.00011241,2]
[349514114,1737262237954,-772.83,0.00011241,2]
[349514116,1737262237963,-438.33,0.00011241,2]
[349514118,1737262237972,-438.33,0.00011241,2]
[349514120,1737262237982,-772.83,0.00011241,2]
[349514122,1737262237991,-438.33,0.00011241,2]
[349514124,1737262238000,-772.83,0.00011241,2]
[349514126,1737262238009,-772.83,0.00011241,2]
[349514128,1737262238019,-438.33,0.00011241,2]
[349514130,1737262238027,-438.33,0.00011241,2]
[349514132,1737262238037,-772.83,0.00011241,2]
[349514134,1737262238046,-438.33,0.00011241,2]
[349514136,1737262238055,-772.83,0.00011241,2]
[349514138,1737262238064,-772.83,0.00011241,2]
[349514140,1737262238073,-772.83,0.00011241,2]
[349514141,1737262238083,-1888.72531701,0.0001126,2]
[349514143,1737262238092,-150.0,0.00011278,2]
[349514145,1737262238101,-150.0,0.00011278,2]
[349514147,1737262238110,-150.0,0.00011278,2]
[349514149,1737262238119,-420.0,0.00011338,2]
[349514151,1737262238128,-981.3,0.00011378,2]
[349514153,1737262238142,-437.55,0.00011378,2]
[349514155,1737262238153,-150.0,0.00011378,2]
[349514157,1737262238162,-150.0,0.00011378,2]
[349514159,1737262238171,-150.0,0.00011378,2]
[349514161,1737262238181,-212.25,0.00011378,2]
[349514163,1737262238190,-150.0,0.00011378,2]
[349514165,1737262238200,-981.3,0.00011378,2]
[349514167,1737262238209,-437.55,0.00011378,2]
[349514169,1737262238218,-150.0,0.00011378,2]
[349514171,1737262238229,-150.0,0.00011378,2]
[349514174,1737262238239,-150.0,0.00011378,2]
[349514175,1737262238248,-437.55,0.00011378,2]
[349514177,1737262238257,-150.0,0.00011378,2]
[349514179,1737262238267,-981.3,0.00011378,2]
[349514181,1737262238276,-150.0,0.00011378,2]
[349514183,1737262238285,-150.0,0.00011378,2]
[349514185,1737262238294,-150.0,0.00011378,2]
[349514187,1737262238303,-981.3,0.00011378,2]
[349514189,1737262238312,-150.0,0.00011378,2]
[349514191,1737262238320,-150.0,0.00011378,2]
[349514193,1737262238330,-437.55,0.00011378,2]
[349514195,1737262238340,-150.0,0.00011378,2]
[349514197,1737262238349,-150.0,0.00011378,2]
[349514199,1737262238358,-150.0,0.00011378,2]
[349514201,1737262238368,-150.0,0.00011378,2]
[349514203,1737262238377,-437.55,0.00011378,2]
[349514205,1737262238387,-981.3,0.00011378,2]
[349514207,1737262238396,-437.55,0.00011378,2]
[349514209,1737262238405,-150.0,0.00011378,2]
[349514211,1737262238415,-981.3,0.00011378,2]
[349514213,1737262238424,-150.0,0.00011378,2]
[349514215,1737262238433,-437.55,0.00011378,2]
[349514217,1737262238443,-150.0,0.00011378,2]
[349514219,1737262238452,-150.0,0.00011378,2]
[349514221,1737262238461,-981.3,0.00011378,2]
[349514223,1737262238470,-981.3,0.00011378,2]
[349514225,1737262238479,-150.0,0.00011378,2]
[349514227,1737262238488,-437.55,0.00011378,2]
[349514229,1737262238497,-150.0,0.00011378,2]
[349514231,1737262238506,-437.55,0.00011378,2]
[349514233,1737262238515,-981.3,0.00011378,2]
[349514235,1737262238525,-150.0,0.00011378,2]
[349514237,1737262238535,-150.0,0.00011378,2]
[349514239,1737262238544,-190.81435957,0.00011446,2]
[349514241,1737262238553,-4879.48724964,0.000115,2]
[349514243,1737262238562,-400.0,0.000115,4]
[349514245,1737262238571,-410.5234979,0.00011502,2]
[349514247,1737262238580,-295.9924436,0.00011598,2]
[349514249,1737262238589,-800.0,0.000116,4]
[349514251,1737262238599,-1000.0,0.00011619,2]
[349514253,1737262238608,-8244.0416,0.00011653,2]
[349514255,1737262238617,-533.0243,0.00011653,2]
[349514257,1737262238627,-220.7537,0.00011653,2]
[349514259,1737262238639,-757.35859531,0.00011688,2]
[349514260,1737262238648,-168.53628603,0.000117,2]
[349514262,1737262238658,-1300.0,0.000117,4]
[349514264,1737262238667,-1976.29656715,0.00011706,2]
[349514267,1737262238680,-1103.18915817,0.00011706,2]
[349514355,1737262239546,-6199.89534682,0.00011706,2]
[349514357,1737262239557,-3554.69450498,0.00011717,2]
[349514359,1737262239566,-1094.01155348,0.00011718,2]
[349514361,1737262239576,-3237.21217215,0.00011718,2]
[349514365,1737262239601,-34.84980557,0.00011718,2]
[349514367,1737262239610,-269.35436845,0.00011719,2]
[349514372,1737262239657,-824.65718503,0.00011719,2]
[349514374,1737262239667,-336.23265496,0.00011721,2]
[349514377,1737262239679,-531.68444091,0.00011721,2]
[349514379,1737262239690,-2175.23184336,0.00011721,2]
[349514392,1737262239820,-1420.75472448,0.00011721,2]
[349514664,1737262242477,-260.81088675,0.00011721,2]
[349514702,1737262242828,-13339.49780233,0.00011721,2]
[349514705,1737262242841,-1340.56130197,0.00011721,2]
[349514707,1737262242850,-200.0,0.00011726,2]
[349514709,1737262242859,-418.45789232,0.00011726,2]
[349514711,1737262242868,-292.58776193,0.00011726,2]
[349514713,1737262242878,-1000.0,0.00011727,2]
[349514715,1737262242888,-1353.501,0.00011727,2]
[349514717,1737262242897,-2027.906,0.00011727,2]
[349514719,1737262242906,-152.783,0.00011727,2]
[349514721,1737262242915,-576.313,0.00011727,2]
[349514723,1737262242924,-1862.0,0.00011727,2]
[349514725,1737262242934,-912.128,0.00011727,2]
[349514727,1737262242943,-820.0,0.00011727,2]
[349514729,1737262242952,-1266.839,0.00011727,2]
[349514731,1737262242961,-2947.0,0.00011727,2]
[349514733,1737262242970,-645.47446647,0.00011727,2]
[349515014,1737262245638,-438.33,0.00011141,2]
[349515016,1737262245647,-772.83,0.00011241,2]
[349515018,1737262245657,-437.55,0.00011378,2]
[349515020,1737262245666,-659.69229865,0.00011378,2]
[349515023,1737262245686,-321.60770135,0.00011378,2]
[349515025,1737262245696,-150.0,0.00011378,2]
[349515027,1737262245705,-150.0,0.00011378,2]
[349515029,1737262245714,-2998.17184456,0.00011727,2]
[349515031,1737262245725,-337.35368897,0.00011727,2]
[349515033,1737262245734,-539.707,0.00011727,2]
[349515035,1737262245743,-150.467,0.00011727,2]
[349515037,1737262245756,-229.0,0.00011727,2]
[349515039,1737262245764,-210.349,0.00011727,2]
[349515041,1737262245774,-250.0,0.00011727,2]
[349515043,1737262245783,-159.289,0.00011727,2]
[349515045,1737262245793,-150.0,0.00011727,2]
[349515047,1737262245802,-155.492,0.00011727,2]
[349515049,1737262245811,-150.0,0.00011727,2]
[349515051,1737262245821,-150.0,0.00011727,2]
[349515053,1737262245831,-165.846,0.00011727,2]
[349515068,1737262245964,-1299.618,0.00011727,2]
[349515070,1737262245975,-1110.821,0.00011727,2]
[349515072,1737262245985,-218.105,0.00011727,2]
[349515074,1737262245994,-250.0,0.00011727,2]
[349515076,1737262246003,-1094.01155348,0.00011731,2]
[349515078,1737262246012,-6437.10471726,0.00011738,2]
[349515080,1737262246024,-2986.0230793,0.00011738,2]
[349515721,1737262465654,10000.0,0.0002021,30]
[349515722,1737262471939,10000.0,0.0002021,30]
[349515723,1737262478448,10000.0,0.0002021,30]
[349515725,1737262497519,8330.99,0.0002021,30]
[349515726,1737262719058,150.0,8.803e-05,2]
[349515742,1737263431635,-640.67,8.935e-05,2]
[349515743,1737263431644,-157.36,0.00010137,2]
[349515744,1737263431654,-195.28,0.00010137,2]
[349515745,1737263431663,-500.0,0.00010658,2]
[349515746,1737263431672,-717.2344,0.00010716,2]
[349515747,1737263431681,-1000.0,0.00010726,2]
[349515748,1737263431691,-193.44,0.00010786,2]
[349515749,1737263431700,-250.0,0.00010789,2]
[349515750,1737263431709,-426.33,0.00010802,2]
[349515751,1737263431718,-318.88,0.00010803,2]
[349515752,1737263431728,-300.0,0.00010815,2]
[349515753,1737263431737,-787.00559851,0.00010816,2]
[349515754,1737263432128,-5485.68440149,0.00010816,2]
[349515755,1737263432138,-250.0,0.0001083,2]
[349515756,1737263432149,-250.0,0.00010847,2]
[349515757,1737263432157,-150.0,0.00010959,2]
[349515758,1737263432168,-772.83,0.00011041,2]
[349515759,1737263432178,-438.23,0.00011041,2]
[349515760,1737263432187,-772.83,0.00011041,2]
[349515761,1737263432196,-772.83,0.00011041,2]
[349515762,1737263432205,-438.23,0.00011041,2]
[349515763,1737263432214,-437.55,0.00011078,2]
[349515764,1737263432223,-981.3,0.00011078,2]
[349515765,1737263432233,-150.0,0.00011078,2]
[349515766,1737263432243,-150.0,0.00011078,2]
[349515767,1737263432253,-981.3,0.00011078,2]
[349515768,1737263432262,-437.55,0.00011078,2]
[349515769,1737263432272,-150.0,0.00011078,2]
[349515770,1737263432282,-150.0,0.00011078,2]
[349515771,1737263432294,-150.0,0.00011078,2]
[349515772,1737263432303,-437.55,0.00011078,2]
[349515773,1737263432312,-981.3,0.00011078,2]
[349515774,1737263432322,-435.93,0.00011078,2]
[349515775,1737263432331,-150.0,0.00011078,2]
[349515776,1737263432340,-981.3,0.00011078,2]
[349515777,1737263432349,-150.0,0.00011177,2]
[349515778,1737263432359,-981.3,0.00011178,2]
[349515779,1737263432368,-150.0,0.00011178,2]
[349515780,1737263432378,-437.55,0.00011178,2]
[349515781,1737263432387,-150.0,0.00011178,2]
[349515782,1737263432396,-150.0,0.00011178,2]
[349515783,1737263432406,-981.3,0.00011178,2]
[349515784,1737263432415,-150.0,0.00011178,2]
[349515785,1737263432424,-437.55,0.00011178,2]
[349515786,1737263432434,-437.55,0.00011178,2]
[349515787,1737263432444,-150.0,0.00011178,2]
[349515788,1737263432453,-150.0,0.00011178,2]
[349515789,1737263432462,-981.3,0.00011178,2]
[349515790,1737263432471,-640.67,0.00011199,2]
[349515791,1737263432480,-981.3,0.000112,2]
[349515792,1737263432490,-150.0,0.000112,2]
[349515793,1737263432500,-772.83,0.000112,2]
[349515794,1737263432509,-437.55,0.000112,2]
[349515795,1737263432518,-505.68,0.000112,2]
[349515796,1737263432527,-150.0,0.000112,2]
[349515797,1737263432536,-430.3178249,0.00011471,2]
[349515798,1737263432546,-95.87731945,0.000115,4]
[349515799,1737263432570,-204.12268055,0.000115,4]
[349515800,1737263432580,-176.207041,0.00011598,2]
[349515801,1737263432589,-600.0,0.000116,4]
[349515802,1737263432599,-768.99,0.000117,2]
[349515803,1737263432608,-900.0,0.000117,4]
[349515804,1737263432618,-7241.57230788,0.00011718,2]
[349515805,1737263432629,-1627.74335221,0.00011727,2]
[349515806,1737263432638,-153.461,0.00011727,2]
[349515807,1737263432648,-252.3,0.00011727,2]
[349515808,1737263432658,-169.966,0.00011727,2]
[349515810,1737263432667,-2398.0,0.00011727,2]
[349515812,1737263432676,-375.91379713,0.00011732,2]
[349515813,1737263432686,-200.0,0.00011736,2]
[349515814,1737263432696,-9981.6458582,0.00011738,2]
[349515815,1737263432705,-3000.0,0.00011738,2]
[349515816,1737263432714,-375.91379713,0.00011738,2]
[349515817,1737263432723,-218.8023107,0.00011739,2]
[349515818,1737263432733,-403.59122846,0.00011742,2]
[349515819,1737263432742,-793.20912193,0.00011742,2]
[349515820,1737263432753,-1937.63733463,0.00011742,2]
[349515821,1737263432765,-2465.27632903,0.00011742,2]
[349515822,1737263432775,-6130.8030989,0.00011746,2]
[349515823,1737263432784,-4033.9367202,0.00011746,2]
[349515824,1737263432794,-7368.21256772,0.00011749,2]
[349515825,1737263432809,-313.44642924,0.00011749,2]
[349515827,1737263438128,-1331.42538322,0.00011197,2]
[349515828,1737263438144,-21565.04817252,0.00011197,2]
[349515829,1737263438160,-1092.5511821,0.00011197,2]
[349515830,1737263439885,-364.27886965,0.00011197,2]
[349515831,1737263439943,-503.39722701,0.00011197,2]
[349515832,1737263440157,-5143.2991655,0.00011197,2]
[349515833,1737263440167,-5156.73361703,0.00011197,2]
[349515834,1737263440216,-915.34000024,0.00011197,2]
[349515857,1737263442781,-303.369,0.00011197,2]
[349515858,1737263442838,-393.29595266,0.00011197,2]
[349515859,1737263442860,-11708.39916403,0.00011197,2]
[349515860,1737263442869,-1105.0,0.00011727,2]
[349515861,1737263442879,-4658.20220443,0.00011749,2]
[349515862,1737263443001,-1764.09695905,0.00011749,2]
[349515876,1737263445557,-127931.45939268,0.00011749,2]
[349515877,1737263445567,-3554.69450498,0.00011749,2]
[349515878,1737263445576,-6057.64531367,0.00011751,2]
[349515879,1737263445585,-5196.12278559,0.00011751,2]
[349515880,1737263445594,-7241.57230788,0.00011751,2]
[349515881,1737263445603,-16292.43749348,0.00011753,2]
[349515882,1737263445612,-656.73428701,0.00011753,2]
[349515883,1737263445621,-6057.64531367,0.00011754,2]
[349515884,1737263445630,-26824.6321097,0.00011754,2]
[349515885,1737263445643,-19404.77365476,0.00011756,2]
[349515886,1737263445652,-375.91379713,0.00011757,2]
[349515887,1737263445662,-16292.43749348,0.00011758,2]
[349515888,1737263445671,-7241.57230788,0.00011758,2]
[349515889,1737263445681,-218.8023107,0.00011762,2]
[349515890,1737263445690,-218.8023107,0.00011762,2]
[349515891,1737263445699,-218.8023107,0.00011763,2]
[349515892,1737263445708,-656.73428701,0.00011763,2]
[349515893,1737263445717,-3554.69450498,0.00011764,2]
[349515894,1737263445727,-403.59122846,0.00011765,2]
[349515895,1737263445737,-1094.01155348,0.00011766,2]
[349515896,1737263445747,-375.91379713,0.00011766,2]
[349515897,1737263445757,-6057.64531367,0.00011767,2]
[349515898,1737263445766,-200.0,0.00011767,2]
[349515899,1737263445776,-5578.00162168,0.00011768,2]
[349515900,1737263445851,-6445.63337646,0.00011768,2]
[349515901,1737263445862,-4268.80249534,0.00011768,2]
[349515902,1737263445872,-403.59122846,0.00011769,2]
[349515903,1737263445881,-1603.98,0.0001177,2]
[349515904,1737263445893,-154.56273338,0.0001177,2]
[349515905,1737263445903,-3272.06197772,0.00011771,2]
[349515906,1737263445912,-21525.83959802,0.00011772,2]
[349515907,1737263445924,-48366.518345,0.00011772,2]
[349515908,1737263445965,-26330.34563063,0.00011772,2]
[349515909,1737263498848,350.0,0.00022,120]
[349515914,1737264293641,151.0,0.00022,120]
[349515937,1737264632013,-604.1,8.829e-05,2]
[349515938,1737264632027,-159.22,0.00010137,2]
[349515939,1737264632037,-1500.0,0.00010481,2]
[349515940,1737264632047,-3098.78,0.00010503,2]
[349515941,1737264632056,-250.0,0.00010506,2]
[349515942,1737264632066,-250.0,0.00010556,2]
[349515943,1737264632076,-4957.7356219,0.00010556,2]
[349515944,1737264632087,-300.0,0.0001058,2]
[349515945,1737264632097,-1000.0,0.00010581,2]
[349515946,1737264632107,-199.16954624,0.00010686,2]
[349515947,1737264632117,-250.0,0.00010786,2]
[349515948,1737264632128,-213.16,0.0001085,2]
[349515949,1737264632138,-981.3,0.00010978,2]
[349515950,1737264632148,-981.3,0.00010978,2]
[349515951,1737264632159,-13687.29422052,0.00011,2]
[349515952,1737264632170,-981.3,0.00011078,2]
[349515953,1737264632180,-604.1,0.00011093,2]
[349515954,1737264632190,-981.3,0.00011178,2]
[349515955,1737264632200,-430.3178249,0.00011293,2]
[349515956,1737264632210,-1251.86406748,0.000113,2]
[349515957,1737264632219,-300.0,0.000114,4]
[349515958,1737264632229,-9456.0,0.00011405,2]
[349515959,1737264632239,-600.0,0.000115,4]
[349515960,1737264632249,-1434.0,0.000115,2]
[349515961,1737264632259,-224.8320808,0.00011536,2]
[349515962,1737264632269,-199.16954624,0.00011581,2]
[349515963,1737264632279,-150.0,0.00011581,2]
[349515964,1737264632288,-516.71068336,0.000116,4]
[349515965,1737264632310,-483.28931664,0.000116,4]
[349515966,1737264632319,-420.0,0.00011631,2]
[349515967,1737264632329,-311.8727,0.00011673,2]
[349515968,1737264632339,-285.9099,0.00011673,2]
[349515969,1737264632348,-1000.0,0.00011673,2]
[349515970,1737264632358,-2500.0,0.00011673,2]
[349515971,1737264632367,-12717.91884232,0.0001168,2]
[349515972,1737264632377,-389.19832869,0.0001168,2]
[349515973,1737264632386,-6914.9277,0.00011681,2]
[349515974,1737264632395,-1300.0,0.000117,4]
[349515975,1737264632405,-12717.91884229,0.00011704,2]
[349515976,1737264632414,-1330.238,0.00011705,2]
[349515977,1737264632424,-1056.138,0.00011705,2]
[349515978,1737264632433,-824.0,0.00011705,2]
[349515979,1737264632442,-3982.0,0.00011705,2]
[349515980,1737264632452,-546.533,0.00011705,2]
[349515981,1737264632462,-188.588,0.00011705,2]
[349515982,1737264632471,-151.295,0.00011705,2]
[349515983,1737264632480,-1020.077,0.00011705,2]
[349515984,1737264632490,-3857.22603534,0.0001172,2]
[349515985,1737264632506,-20002.86933472,0.00011724,2]
[349515986,1737264632526,-1457.39887139,0.00011724,2]
[349515987,1737264632535,-12717.91884229,0.00011729,2]
[349515988,1737264632546,-3857.22603534,0.00011729,2]
[349515989,1737264632555,-3857.22603534,0.0001173,2]
[349515990,1737264632565,-573.50706288,0.0001173,2]
[349515991,1737264632575,-333.99702731,0.00011734,2]
[349515992,1737264632586,-21460.26820611,0.00011738,2]
[349515993,1737264632596,-200.0,0.00011741,2]
[349515994,1737264632605,-333.99702731,0.00011744,2]
[349515995,1737264632615,-12717.91884229,0.00011753,2]
[349515996,1737264632625,-333.99702731,0.00011755,2]
[349515997,1737264632635,-20356.54502243,0.00011757,2]
[349515998,1737264632650,-1103.72318368,0.00011757,2]
[349515999,1737264632660,-218.44802771,0.00011758,2]
[349516000,1737264632670,-218.44802771,0.00011759,2]
[349516001,1737264632680,-3857.22603534,0.0001176,2]
[349516002,1737264632690,-3857.22603534,0.00011761,2]
[349516003,1737264632700,-1778.126269,0.00011764,2]
[349516004,1737264632709,-3694.9001013,0.00011764,2]
[349516005,1737264632719,-14319.7318895,0.00011764,2]
[349516006,1737264632729,-151.0,0.00011766,2]
[349516007,1737264632739,-218.44802771,0.00011771,2]
[349516008,1737264632749,-500.0,0.00011772,2]
[349516009,1737264632758,-500.0,0.00011772,2]
[349516010,1737264632768,-500.0,0.00011772,2]
[349516011,1737264632778,-501.05505135,0.00011772,2]
[349516012,1737264632788,-500.0,0.00011772,2]
[349516013,1737264632798,-280.38808493,0.00011772,2]
[349516014,1737264632807,-500.0,0.00011772,2]
[349516015,1737264632817,-500.0,0.00011772,2]
[349516016,1737264632826,-436.62713417,0.00011772,2]
[349516017,1737264632835,-458.47612234,0.00011772,2]
[349516018,1737264632845,-99971.17600992,0.00011772,2]
[349516024,1737264632978,-835.1996,0.00011673,2]
[349516025,1737264632988,-1038.75521306,0.00011772,2]
[349516029,1737264633154,-3172.50000046,0.00011772,2]
[349516036,1737264637873,-569.816,0.00011705,2]
[349516037,1737264637883,-31.72780252,0.00011705,2]
[349516038,1737264637895,-606.62619748,0.00011705,2]
[349516039,1737264637905,-57620.08563385,0.00011772,2]
[349516040,1737264637914,-1013.36380274,0.00011772,2]
[349516041,1737264637926,-951.64319726,0.00011772,2]
[349516042,1737264637935,-158.377,0.00011772,2]
[349516043,1737264637945,-3.7743424,0.00011772,2]
[349516044,1737264637960,-2996.2256576,0.00011772,2]
[349516045,1737264637969,-218.44802771,0.00011773,2]
[349516046,1737264637979,-410.95313459,0.00011773,2]
[349516086,1737264645837,-552.36791462,0.00011773,2]
[349516087,1737264645902,-423.9,0.00011773,2]
[349516088,1737264645918,-1684.3624554,0.00011773,2]
[349516089,1737264645934,-1646.81476,0.00011773,2]
[349516090,1737264645948,-818.13433663,0.00011773,2]
[349516091,1737264646020,-815.11929141,0.00011773,2]
[349516092,1737264646082,-488.28855784,0.00011773,2]
[349516094,1737265180147,10000.0,8.803e-05,2]
[349516095,1737265211507,1142.01,8.803e-05,2]
[349516096,1737265389269,-300.0,0.000115,4]
[349516097,1737265389291,-600.0,0.000116,4]
[349516098,1737265389314,-900.0,0.000117,4]
[349516099,1737265389341,-1600.0,0.000118,4]
[349516100,1737265389364,-1200.0,0.000118,4]
[349516101,1737265389387,-300.0,0.000119,4]
[349516102,1737265389409,-1500.0,0.000119,4]
[349516103,1737265426321,160.0,6e-05,2]
[349516104,1737265486674,199.0,6e-05,2]
[349516105,1737265546523,156.0,6e-05,2]
[349516106,1737265607298,182.0,6e-05,2]
[349516107,1737265613440,694.7,8.464e-05,2]
[349516108,1737265766111,-361.24,0.00010137,2]
[349516109,1737265766137,-250.0,0.00010362,2]
[349516110,1737265766163,-3746.416436,0.0001042,2]
[349516114,1737265832025,-560.323564,0.0001042,2]